fUST/lending_fUST_20240613
["ID","MTS","AMOUNT","RATE_DAILY","PERIOD"]
[329349699,1718268649915,-500.0,0.00016438,2]
[329349700,1718268649938,-208.65501308,0.00016438,2]
[329349701,1718268650165,-291.34498692,0.00016438,2]
[329349702,1718268650219,-500.0,0.00016438,2]
[329349703,1718268650248,-500.0,0.00016438,2]
[329349704,1718268650268,-509.17,0.00016438,2]
[329349705,1718268650297,-500.0,0.00016438,2]
[329349706,1718268650309,-500.0,0.00016438,2]
[329349707,1718268650321,-440.14971195,0.00016438,2]
[329349708,1718268650333,-500.0,0.00016438,2]
[329349709,1718268650345,-500.0,0.00016438,2]
[329349710,1718268650367,-500.0,0.00016438,2]
[329349711,1718268650384,-133.26196283,0.00016438,2]
[329349714,1718268654592,-5000000.0,0.0002812,120]
[329349715,1718268674695,-5000000.0,0.0002812,120]
[329349716,1718268678750,163.22,0.00010959,2]
[329349717,1718268710813,-341.51697593,0.00016338,2]
[329349718,1718268710931,-19.72838372,0.00016338,2]
[329349720,1718268710942,-155.00155002,0.00016434,2]
[329349721,1718268710953,-155.64112098,0.00016434,2]
[329349722,1718268710964,-155.16081861,0.00016434,2]
[329349725,1718268710977,-200.50912068,0.00016434,2]
[329349728,1718268710996,-208.48799237,0.00016434,2]
[329349729,1718268711006,-304.18318164,0.00016434,2]
[329349730,1718268711023,-172.84726392,0.00016434,2]
[329349731,1718268711038,-155.00155002,0.00016434,2]
[329349732,1718268711049,-380.31481458,0.00016434,2]
[329349733,1718268711063,-109.21197089,0.00016434,2]
[329349734,1718268711092,-272.67145618,0.00016434,2]
[329349735,1718268711117,-155.00155002,0.00016434,2]
[329349736,1718268711128,-155.00155002,0.00016434,2]
[329349737,1718268711140,-207.59791416,0.00016434,10]
[329349738,1718268711162,-304.12076406,0.00016434,2]
[329349739,1718268711189,-306.9792342,0.00016434,2]
[329349740,1718268711201,-155.00155002,0.00016434,2]
[329349741,1718268711233,-174.59908582,0.00016434,2]
[329349742,1718268711246,-155.00155002,0.00016435,2]
[329349743,1718268711261,-1877.54938127,0.00016435,2]
[329349744,1718268711288,-183.10973365,0.00016435,2]
[329349745,1718268711302,-155.00155002,0.00016435,2]
[329349746,1718268711329,-372.78673862,0.00016436,2]
[329349747,1718268711348,-155.0294556,0.00016436,2]
[329349748,1718268711369,-16.06523545,0.00016436,2]
[329349749,1718268713743,526.85006642,9.999e-05,2]
[329349750,1718268717555,1282.5992588,9.999e-05,2]
[329349751,1718268727803,155.00155002,9.999e-05,2]
[329349752,1718268736834,155.56115003,9.999e-05,2]
[329349753,1718268739811,1635.19814687,9.999e-05,7]
[329349754,1718268742297,660.30185486,9.999e-05,2]
[329349755,1718268746476,1343.77512204,9.999e-05,2]
[329349756,1718268750288,195.19296945,9.999e-05,2]
[329349757,1718268751915,317.64353351,9.999e-05,2]
[329349758,1718268753068,155.00155002,9.999e-05,2]
[329349759,1718268753724,775.00790126,9.999e-05,2]
[329349760,1718268757709,155.00155002,9.999e-05,2]
[329349761,1718268757805,411.76904927,9.999e-05,2]
[329349762,1718268758485,1442.75395102,9.999e-05,2]
[329349763,1718268758555,262.21255438,9.999e-05,2]
[329349764,1718268758629,155.00155002,9.999e-05,2]
[329349765,1718268759205,515.96999276,9.999e-05,2]
[329349766,1718268761069,1873.01212722,9.999e-05,2]
[329349767,1718268761258,155.00155002,9.999e-05,2]
[329349768,1718268761297,159.13163847,9.999e-05,2]
[329349769,1718268761814,157.80731331,9.999e-05,2]
[329349770,1718268762176,524.64907675,9.999e-05,2]
[329349771,1718268762753,155.00155002,9.999e-05,2]
[329349773,1718268763399,1873.01212722,9.999e-05,2]
[329349774,1718268763556,155.00155002,9.999e-05,2]
[329349775,1718268765088,155.00155002,9.999e-05,2]
[329349776,1718268765819,155.00155002,9.999e-05,2]
[329349777,1718268765914,155.00155002,9.999e-05,2]
[329349778,1718268766079,11103.40171616,9.999e-05,2]
[329349779,1718268767224,286.00890419,9.999e-05,2]
[329349780,1718268767681,155.00155002,9.999e-05,2]
[329349781,1718268768574,155.00155002,9.999e-05,2]
[329349782,1718268769339,155.00155002,9.999e-05,2]
[329349783,1718268769607,216.42006283,9.999e-05,2]
[329349784,1718268770056,631.13509776,9.999e-05,2]
[329349785,1718268770223,155.00155002,9.999e-05,2]
[329349786,1718268770342,24900.0,0.00013634,2]
[329349787,1718268770740,155.00155002,9.999e-05,2]
[329349788,1718268771173,523.5676107,9.999e-05,2]
[329349789,1718268771667,509.1606772,9.999e-05,2]
[329349790,1718268772010,692.86602494,9.999e-05,2]
[329349791,1718268772566,155.00155002,9.999e-05,2]
[329349792,1718268772653,155.00155002,9.999e-05,2]
[329349793,1718268772701,155.00155002,9.999e-05,2]
[329349794,1718268772880,155.00155002,9.999e-05,2]
[329349795,1718268773699,1518.74519988,9.999e-05,2]
[329349796,1718268773780,155.00155002,9.999e-05,2]
[329349797,1718268774702,155.00155002,9.999e-05,2]
[329349798,1718268775586,155.00155002,9.999e-05,2]
[329349799,1718268776278,155.00155002,9.999e-05,2]
[329349800,1718268776954,187.46396613,9.999e-05,2]
[329349801,1718268777874,1873.01212722,9.999e-05,2]
[329349802,1718268779174,246.09852012,9.999e-05,2]
[329349803,1718268779240,14932.97595775,9.999e-05,2]
[329349804,1718268780101,333.65843994,9.999e-05,2]
[329349805,1718268787375,1873.01212722,9.999e-05,2]
[329349806,1718268810205,-4000000.0,0.0002812,120]
[329349807,1718268831876,1463.5201736,0.00013383,2]
[329349808,1718268856887,182.5499108,0.00013381,2]
[329349809,1718268858313,1671.624843,0.00013699,2]
[329349811,1718268965875,2483.1616318,0.00013699,2]
[329349812,1718269012478,3000.0,0.00013699,2]
[329349813,1718269015659,2055.3586015,0.0001326,2]
[329349814,1718269063940,2913.5744201,0.0001326,2]
[329349815,1718269071988,182.1080297,9.999e-05,2]
[329349816,1718269080979,686.71206999,9.999e-05,2]
[329349817,1718269081266,155.0,9.999e-05,2]
[329349818,1718269103569,282.61589193,9.999e-05,2]
[329349819,1718269105216,927.89421076,9.999e-05,2]
[329349820,1718269113491,552.71924724,9.999e-05,2]
[329349821,1718269119466,530.51032022,9.999e-05,2]
[329349822,1718269122415,1502.1054915,9.999e-05,2]
[329349823,1718269126940,722.70061891,9.999e-05,2]
[329349824,1718269130613,242.52046021,9.999e-05,2]
[329349825,1718269138695,155.0,9.999e-05,2]
[329349826,1718269149110,155.0,9.999e-05,2]
[329349827,1718269150310,526.85006642,9.999e-05,2]
[329349828,1718269154037,372.91872278,9.999e-05,2]
[329349829,1718269156413,155.0,9.999e-05,2]
[329349830,1718269157553,208.48799237,9.999e-05,2]
[329349831,1718269158284,155.0,9.999e-05,2]
[329349832,1718269164624,1282.5992588,9.999e-05,2]
[329349833,1718269165008,272.67145618,9.999e-05,2]
[329349834,1718269173274,155.0,9.999e-05,2]
[329349835,1718269176936,660.30185486,9.999e-05,2]
[329349836,1718269181306,1635.19814687,9.999e-05,7]
[329349837,1718269181410,317.64353351,9.999e-05,2]
[329349838,1718269181938,195.19296945,9.999e-05,2]
[329349839,1718269193094,155.0,9.999e-05,2]
[329349840,1718269193350,216.42006283,9.999e-05,2]
[329349841,1718269196026,1343.77512204,9.999e-05,2]
[329349842,1718269196120,155.0,9.999e-05,2]
[329349843,1718269198634,155.0,9.999e-05,2]
[329349844,1718269199627,631.13509776,9.999e-05,2]
[329349845,1718269200240,1442.75395102,9.999e-05,2]
[329349846,1718269200303,262.21255438,9.999e-05,2]
[329349847,1718269200382,155.0,9.999e-05,2]
[329349848,1718269205238,157.80731331,9.999e-05,2]
[329349849,1718269206616,159.13163847,9.999e-05,2]
[329349850,1718269207267,155.0,9.999e-05,2]
[329349851,1718269207307,775.00790126,9.999e-05,2]
[329349852,1718269209205,509.1606772,9.999e-05,2]
[329349853,1718269209368,155.0,9.999e-05,2]
[329349854,1718269210457,155.0,9.999e-05,2]
[329349855,1718269210775,515.96999276,9.999e-05,2]
[329349856,1718269211193,389.1713033,0.00013099,2]
[329349857,1718269211301,155.0,9.999e-05,2]
[329349858,1718269211745,524.64907675,9.999e-05,2]
[329349859,1718269215628,692.86602494,9.999e-05,2]
[329349860,1718269217259,1518.74519988,9.999e-05,2]
[329349861,1718269222083,246.09852012,9.999e-05,2]
[329349862,1718269222141,155.0,9.999e-05,2]
[329349863,1718269232522,187.46396613,9.999e-05,2]
[329349864,1718269239936,411.76904927,9.999e-05,2]
[329349865,1718269249636,286.00890419,9.999e-05,2]
[329349866,1718269252687,155.0,9.999e-05,2]
[329349867,1718269253193,27008.117137,0.00013038,2]
[329349868,1718269256736,155.0,9.999e-05,2]
[329349869,1718269343924,-1912.05973097,0.00014019,2]
[329349870,1718269343958,-2475.76048699,0.00014019,2]
[329349871,1718269343988,-155.0,0.00014019,2]
[329349872,1718269344019,-286.00890419,0.0001402,2]
[329349873,1718269344047,-262.21255438,0.0001402,2]
[329349874,1718269344089,-155.0,0.0001402,2]
[329349875,1718269344131,-686.71206999,0.0001402,2]
[329349876,1718269344169,-159.13163847,0.0001402,2]
[329349877,1718269344199,-775.00790126,0.0001402,2]
[329349878,1718269344235,-631.13509776,0.0001402,2]
[329349879,1718269344263,-1343.77512204,0.00014021,2]
[329349880,1718269344306,-1984.62608834,0.00014021,2]
[329349881,1718269344335,-155.0,0.00014022,2]
[329349882,1718269344372,-317.64353351,0.00014022,2]
[329349883,1718269344441,-155.0,0.00014022,2]
[329349884,1718269344469,-722.70061891,0.00014022,2]
[329349885,1718269344504,-195.19296945,0.00014022,2]
[329349886,1718269344538,-2644.05459629,0.00014022,2]
[329349887,1718269344576,-1502.1054915,0.00014022,2]
[329349888,1718269344608,-216.42006283,0.00014022,2]
[329349889,1718269344635,-1442.75395102,0.00014022,2]
[329349890,1718269344688,-300.0,0.00014023,2]
[329349891,1718269344733,-155.0,0.00014023,2]
[329349892,1718269344773,-242.52046021,0.00014023,2]
[329349893,1718269344821,-155.0,0.00014023,2]
[329349894,1718269344857,-7922.90185595,0.00014024,2]
[329349895,1718269344898,-155.0,0.00014024,2]
[329349896,1718269344941,-1877.54938127,0.00014024,2]
[329349897,1718269344989,-155.0,0.00014024,2]
[329349898,1718269345019,-182.1080297,0.00014024,2]
[329349899,1718269345072,-530.51032022,0.00014024,2]
[329349900,1718269345117,-1995.86656917,0.00014025,2]
[329349901,1718269345152,-208.48799237,0.00014025,2]
[329349902,1718269345204,-2683.52570932,0.00014025,2]
[329349903,1718269345237,-282.61589193,0.00014026,2]
[329349904,1718269345266,-11103.40171616,0.00014026,2]
[329349905,1718269345324,-927.89421076,0.00014026,2]
[329349906,1718269345391,-187.46396613,0.00014026,2]
[329349907,1718269345482,-3121.08573838,0.00014027,4]
[329349908,1718269345518,-246.09852012,0.00014027,2]
[329349909,1718269345563,-155.0,0.00014027,2]
[329349910,1718269345613,-515.96999276,0.00014028,2]
[329349911,1718269345655,-42124.85895111,0.00014028,2]
[329349912,1718269345699,-46653.19179324,0.00014028,2]
[329349913,1718269345740,-155.0,0.00014029,2]
[329349914,1718269345778,-10547.48179918,0.00014029,2]
[329349915,1718269345807,-155.0,0.00014029,2]
[329349916,1718269345848,-692.86602494,0.00014029,2]
[329349917,1718269345893,-552.71924724,0.00014029,2]
[329349918,1718269345931,-9594.02615296,0.00014029,2]
[329349919,1718269345977,-155.0,0.0001403,2]
[329349920,1718269346003,-1518.74519988,0.0001403,2]
[329349921,1718269346047,-155.0,0.0001403,2]
[329349922,1718269346081,-159.06364918,0.00014034,2]
[329349923,1718269346140,-413.34042153,0.00014037,2]
[329349924,1718269346202,-8906.77362827,0.00014043,2]
[329349925,1718269346579,157.80731331,0.00014019,2]
[329349926,1718269346857,26778.82464681,0.00014022,2]
[329349927,1718269347080,24900.0,0.00013024,2]
[329349929,1718269364875,250.0,0.00013051,2]
[329349930,1718269394020,962.333817,0.00013699,2]
[329349931,1718269397287,14837.24735583,0.00013051,2]
[329349932,1718269418927,3483.79830793,0.0001392,2]
[329349933,1718269467115,6077.047501,0.00013117,2]
[329349934,1718269497614,163.87346227,0.00013906,2]
[329349935,1718269508131,155.0,9.999e-05,2]
[329349936,1718269516904,-524.64907675,0.00014003,2]
[329349937,1718269516963,-300.0,0.00014004,2]
[329349938,1718269516997,-155.0,0.00014004,2]
[329349939,1718269517055,-182.1080297,0.00014005,2]
[329349940,1718269517093,-775.00790126,0.00014005,2]
[329349941,1718269517136,-1984.62608834,0.00014005,2]
[329349942,1718269517185,-300.0,0.00014005,2]
[329349943,1718269517244,-55778.60890395,0.00014005,2]
[329349944,1718269550396,46653.19179324,0.00014,2]
[329349945,1718269550933,187.46396613,0.00014,2]
[329349946,1718269561417,300.0,0.00014,2]
[329349947,1718269564389,46653.19179324,0.00014,2]
[329349948,1718269564947,187.46396613,0.00014,2]
[329349949,1718269566996,-11103.40171616,0.00014001,2]
[329349950,1718269567028,-686.71206999,0.00014001,2]
[329349951,1718269567058,-246.09852012,0.00014001,2]
[329349952,1718269567101,-155.0,0.00014001,2]
[329349953,1718269567158,-155.0,0.00014001,2]
[329349954,1718269567191,-7922.90185595,0.00014001,2]
[329349955,1718269567238,-631.13509776,0.00014001,2]
[329349956,1718269567269,-195.19296945,0.00014001,2]
[329349957,1718269567296,-159.13163847,0.00014001,2]
[329349958,1718269567332,-155.0,0.00014001,2]
[329349959,1718269567376,-155.0,0.00014001,2]
[329349960,1718269567421,-2683.52570932,0.00014001,2]
[329349961,1718269567449,-530.51032022,0.00014001,2]
[329349962,1718269567508,-1912.05973097,0.00014001,2]
[329349963,1718269567548,-155.0,0.00014002,2]
[329349964,1718269567584,-1502.1054915,0.00014002,2]
[329349965,1718269567633,-157.80731331,0.00014002,2]
[329349966,1718269567692,-927.89421076,0.00014002,2]
[329349967,1718269567719,-1343.77512204,0.00014002,2]
[329349968,1718269567758,-155.0,0.00014002,2]
[329349969,1718269567813,-515.96999276,0.00014002,2]
[329349970,1718269567842,-242.52046021,0.00014002,2]
[329349971,1718269567905,-3121.08573838,0.00014002,4]
[329349972,1718269567936,-9594.02615296,0.00014002,2]
[329349973,1718269567968,-42124.85895111,0.00014002,2]
[329349974,1718269568038,-692.86602494,0.00014003,2]
[329349975,1718269568096,-10547.48179918,0.00014003,2]
[329349976,1718269568163,-286.00890419,0.00014003,2]
[329349977,1718269568251,-216.42006283,0.00014003,2]
[329349978,1718269568312,-722.70061891,0.00014003,2]
[329349979,1718269568346,-1003.80952851,0.00014003,2]
[329349980,1718269589184,1442.75395102,0.00014,2]
[329349981,1718269591056,1877.54938127,0.00014,2]
[329349982,1718269591145,208.48799237,0.00014,2]
[329349983,1718269592762,524.64907675,0.00014,2]
[329349984,1718269594342,1518.74519988,0.00014,2]
[329349985,1718269596377,262.2991955,0.00013116,2]
[329349986,1718269602463,155.0,0.00014,2]
[329349987,1718269603134,282.61589193,0.00014,2]
[329349988,1718269611596,155.0,0.00014,2]
[329349989,1718269616979,2037.86135969,0.00014,2]
[329349990,1718269621599,300.0,0.00014,2]
[329349991,1718269629003,195.19296945,0.00014,2]
[329349992,1718269630307,157.80731331,0.00014,2]
[329349993,1718269631096,59609.75359022,0.00014,2]
[329349994,1718269633021,686.71206999,0.00014,2]
[329349995,1718269634257,692.86602494,0.00014,2]
[329349996,1718269636703,11103.40171616,0.00014,2]
[329349997,1718269637985,2683.52570932,0.00013999,2]
[329349998,1718269638486,2475.76048699,0.00014,2]
[329349999,1718269638599,722.70061891,0.00014,2]
[329350000,1718269639590,552.71924724,0.00013999,2]
[329350001,1718269642045,246.09852012,0.00013999,2]
[329350002,1718269646688,1282.5992588,9.999e-05,2]
[329350003,1718269648217,3000.0,0.00013699,2]
[329350004,1718269648762,1995.86656917,0.00014,2]
[329350005,1718269652581,775.00790126,0.00014,2]
[329350006,1718269652981,317.64353351,0.00014,2]
[329350007,1718269658134,182.1080297,0.00014,2]
[329350008,1718269672259,13744.8470117,0.00013699,2]
[329350009,1718269681573,300.0,0.00014,2]
[329350010,1718269684217,300.0,0.00014,2]
[329350011,1718269686044,272.67145618,9.999e-05,2]
[329350012,1718269697490,195.19296945,0.00014,2]
[329350013,1718269699164,631.13509776,0.00014,2]
[329350014,1718269699573,660.30185486,9.999e-05,2]
[329350015,1718269700256,1912.05973097,0.00014,2]
[329350016,1718269701934,29449.55599501,0.00014,2]
[329350017,1718269711403,243.82587137,9.999e-05,2]
[329350018,1718269711447,217.27436834,9.999e-05,2]
[329350019,1718269711500,61.68348213,9.999e-05,2]
[329350038,1718269835012,-524.64907675,0.00013887,2]
[329350039,1718269835028,-8.04081274,0.00013887,2]
[329350052,1718269840876,-155.0,0.00013886,2]
[329350054,1718269840888,-1912.05973097,0.00013886,2]
[329350056,1718269840926,-927.89421076,0.00013886,2]
[329350057,1718269840940,-146.95918726,0.00013887,2]
[329350059,1718269840976,-2683.52570932,0.00013887,2]
[329350060,1718269840991,-155.0,0.00013887,2]
[329350062,1718269841004,-159.13163847,0.00013887,2]
[329350064,1718269841024,-2644.05459629,0.00013887,2]
[329350066,1718269841039,-530.51032022,0.00013887,2]
[329350068,1718269841060,-1442.75395102,0.00013887,2]
[329350070,1718269841091,-9594.02615296,0.00013887,2]
[329350072,1718269841125,-195.19296945,0.00013888,2]
[329350075,1718269841166,-686.71206999,0.00013888,2]
[329350077,1718269841183,-157.80731331,0.00013888,2]
[329350079,1718269841198,-1343.77512204,0.00013888,2]
[329350082,1718269841238,-208.48799237,0.00013888,2]
[329350084,1718269841272,-317.64353351,0.00013888,2]
[329350086,1718269841284,-1877.54938127,0.00013888,2]
[329350088,1718269841319,-155.0,0.00013888,2]
[329350089,1718269841341,-155.0,0.00013889,2]
[329350091,1718269841366,-286.00890419,0.00013889,2]
[329350093,1718269841387,-631.13509776,0.00013889,2]
[329350094,1718269841408,-552.71924724,0.00013889,2]
[329350097,1718269841425,-1518.74519988,0.00013889,2]
[329350099,1718269841458,-242.52046021,0.0001389,2]
[329350102,1718269841474,-692.86602494,0.0001389,2]
[329350104,1718269841486,-7922.90185595,0.0001389,2]
[329350106,1718269841508,-182.1080297,0.00013891,2]
[329350107,1718269841521,-3121.08573838,0.00013891,4]
[329350109,1718269841534,-2475.76048699,0.00013891,2]
[329350111,1718269841548,-46653.19179324,0.00013891,2]
[329350112,1718269841576,-775.00790126,0.00013892,2]
[329350114,1718269841588,-11103.40171616,0.00013892,2]
[329350115,1718269841599,-3048.32351943,0.00013893,2]
[329350116,1718269841611,-300.0,0.0001399,2]
[329350117,1718269841623,-1995.86656917,0.00013991,2]
[329350118,1718269841639,-1282.5992588,0.00013991,2]
[329350119,1718269841652,-59609.75359022,0.00013991,2]
[329350120,1718269841665,-1502.1054915,0.00013992,2]
[329350121,1718269841676,-10547.48179918,0.00013992,2]
[329350122,1718269841687,-42124.85895111,0.00013994,2]
[329350123,1718269841703,-155.0,0.00013998,2]
[329350124,1718269841716,-164.71066412,0.00013998,2]
[329350125,1718269841734,-155.0,0.00013998,2]
[329350126,1718269841772,-460.21590257,0.00013998,2]
[329350127,1718269841783,-175.14912016,0.00014001,2]
[329350128,1718269841798,-285.96567192,0.00014001,2]
[329350129,1718269841832,-411.9008935,0.00014001,2]
[329350130,1718269841858,-2071.73218597,0.00014001,2]
[329350131,1718269841894,-1114.23146943,0.00014002,2]
[329350132,1718269841909,-494.77424844,0.00014002,2]
[329350133,1718269841924,-241.21658047,0.00014002,2]
[329350134,1718269841940,-228.57934904,0.00014004,2]
[329350135,1718269841952,-1961.53053859,0.00014004,2]
[329350136,1718269841968,-240.21025864,0.0001402,2]
[329350137,1718269841992,-155.9512672,0.0001402,2]
[329350138,1718269842003,-206.46909245,0.0001402,2]
[329350139,1718269842013,-286.08448969,0.0001402,2]
[329350140,1718269842044,-207.04519421,0.00014021,2]
[329350141,1718269842076,-179.41254837,0.00014021,2]
[329350142,1718269842094,-155.59348475,0.00014134,2]
[329350143,1718269842120,-245.69854936,0.00014136,2]
[329350144,1718269842136,-155.09410172,0.00014136,2]
[329350145,1718269842147,-511.17192822,0.00014136,2]
[329350146,1718269842176,-156.2945666,0.00014136,2]
[329350147,1718269842186,-726.30535293,0.00014139,7]
[329350148,1718269842201,-205.08706059,0.00014162,2]
[329350149,1718269842228,-201.20690723,0.00014254,2]
[329350150,1718269842244,-216.83032489,0.00014388,2]
[329350151,1718269842255,-222.23834523,0.00014388,2]
[329350152,1718269842280,-236.53722833,0.00014388,2]
[329350153,1718269842312,-161.13548397,0.00014388,2]
[329350154,1718269842331,-270.84584174,0.00014388,2]
[329350155,1718269842341,-202.29207712,0.00014388,2]
[329350156,1718269842361,-174.42825264,0.00014388,2]
[329350157,1718269842372,-241.28518044,0.00014388,2]
[329350158,1718269842384,-272.06947461,0.00014896,2]
[329350159,1718269842402,-462.04977545,0.00014896,2]
[329350160,1718269842428,-7125.41890264,0.00014899,2]
[329350161,1718269842452,-165.79257293,0.00014996,2]
[329350162,1718269842470,-228.62094309,0.00014996,2]
[329350163,1718269842482,-155.28096228,0.00014997,2]
[329350164,1718269842494,-166.0576793,0.00014997,2]
[329350165,1718269842514,-397.01190971,0.00014997,2]
[329350166,1718269842531,-237.63099648,0.00014998,2]
[329350167,1718269842555,-271.95390206,0.00014999,2]
[329350168,1718269842591,-223.21458107,0.00014999,2]
[329350169,1718269842603,-1101.24268017,0.00015,2]
[329350170,1718269842614,-2817.72604332,0.00015,2]
[329350171,1718269842627,-946.2991471,0.00015,2]
[329350172,1718269842639,-155.00155002,0.00015,2]
[329350173,1718269842656,-1303.29757194,0.00015,2]
[329350174,1718269842681,-2412.19596902,0.00015,2]
[329350175,1718269842703,-155.00155002,0.00015,2]
[329350176,1718269842749,-1692.06699565,0.00015,2]
[329350177,1718269842775,-27694.07876644,0.00015,2]
[329350183,1718269844315,-4728.516748,0.00013886,2]
[329350554,1718269852390,-5818.96505118,0.00013886,2]
[329350555,1718269852410,-1422.42835406,0.00015,2]
[329350620,1718270066917,243.92952985,9.999e-05,2]
[329350621,1718270066954,243.92952985,9.999e-05,2]
[329350622,1718270067013,38.99100672,9.999e-05,2]
[329350624,1718270147177,204.93852313,9.999e-05,2]
[329350625,1718270147224,237.35475957,9.999e-05,2]
[329350626,1718270147263,243.92952985,9.999e-05,2]
[329350627,1718270147302,243.92952985,9.999e-05,2]
[329350628,1718270147353,512.60160862,9.999e-05,2]
[329350629,1718270148754,262.21255438,9.999e-05,2]
[329350630,1718270152848,208.48799237,9.999e-05,2]
[329350631,1718270155680,182.1080297,9.999e-05,2]
[329350632,1718270156266,1282.5992588,9.999e-05,2]
[329350633,1718270157003,317.64353351,9.999e-05,2]
[329350634,1718270160236,242.52046021,9.999e-05,2]
[329350635,1718270160308,286.00890419,9.999e-05,2]
[329350636,1718270161092,686.71206999,9.999e-05,2]
[329350637,1718270162897,927.89421076,9.999e-05,2]
[329350638,1718270166329,157.80731331,9.999e-05,2]
[329350639,1718270168430,775.00790126,9.999e-05,2]
[329350640,1718270168811,524.64907675,9.999e-05,2]
[329350641,1718270169302,155.0,9.999e-05,2]
[329350642,1718270171764,159.13163847,9.999e-05,2]
[329350643,1718270173071,530.51032022,9.999e-05,2]
[329350644,1718270174756,692.86602494,9.999e-05,2]
[329350645,1718270177153,1343.77512204,9.999e-05,2]
[329350646,1718270180117,155.0,9.999e-05,2]
[329350647,1718270180173,552.71924724,9.999e-05,2]
[329350648,1718270182170,155.0,9.999e-05,2]
[329350649,1718270184878,1518.74519988,9.999e-05,2]
[329350650,1718270187272,631.13509776,9.999e-05,2]
[329350651,1718270187587,195.19296945,9.999e-05,2]
[329350652,1718270195914,155.0,9.999e-05,2]
[329350653,1718270202502,1502.1054915,9.999e-05,2]
[329350654,1718270396764,208.48799237,9.999e-05,2]
[329350655,1718270407016,317.64353351,9.999e-05,2]
[329350656,1718270407208,1442.75395102,9.999e-05,2]
[329350657,1718270409647,182.1080297,9.999e-05,2]
[329350658,1718270414881,524.64907675,9.999e-05,2]
[329350659,1718270419397,686.71206999,9.999e-05,2]
[329350660,1718270420376,1282.5992588,9.999e-05,2]
[329350661,1718270422009,1343.77512204,9.999e-05,2]
[329350662,1718270422300,286.00890419,9.999e-05,2]
[329350663,1718270423346,155.0,9.999e-05,2]
[329350664,1718270428506,242.52046021,9.999e-05,2]
[329350665,1718270432927,927.89421076,9.999e-05,2]
[329350666,1718270440377,157.80731331,9.999e-05,2]
[329350667,1718270465970,155.0,9.999e-05,2]
[329350668,1718270483669,452.8473094,9.856e-05,2]
[329350669,1718270513859,523.5676107,9.999e-05,2]
[329350670,1718270550036,317.64353351,9.999e-05,2]
[329350671,1718270555390,286.00890419,9.999e-05,2]
[329350672,1718270557060,250.0,9.768e-05,2]
[329350673,1718270558361,686.71206999,9.999e-05,2]
[329350674,1718270558509,1343.77512204,9.999e-05,2]
[329350675,1718270560319,1282.5992588,9.999e-05,2]
[329350676,1718270567327,242.52046021,9.999e-05,2]
[329350677,1718270567486,157.80731331,9.999e-05,2]
[329350678,1718270605054,155.0,9.999e-05,2]
[329350679,1718270632561,317.64353351,9.999e-05,2]
[329350681,1718270669121,668.5605228,9.736e-05,2]
[329350682,1718270697810,1442.75395102,9.999e-05,2]
[329350683,1718270705066,317.64353351,9.999e-05,2]
[329350684,1718270781899,317.64353351,9.999e-05,2]
[329350689,1718270912577,3616.33764897,9.999e-05,2]
[329350690,1718270914019,156.11606605,9.999e-05,2]
[329350691,1718270914142,300.39680964,9.999e-05,2]
[329350692,1718270916726,16197.67171945,9.999e-05,2]
[329350693,1718270924922,155.0,9.999e-05,2]
[329350694,1718270930406,3616.33764897,9.999e-05,2]
[329350695,1718270933837,300.39680964,9.999e-05,2]
[329350696,1718270936693,4780.03353823,9.999e-05,2]
[329350697,1718270938023,509.1606772,9.999e-05,2]
[329350698,1718270946383,3683.59508415,9.999e-05,2]
[329350699,1718270946924,155.68799162,9.999e-05,2]
[329350700,1718270951849,300.39680964,9.999e-05,2]
[329350701,1718270954669,411.76904927,9.999e-05,2]
[329350714,1718270957863,1995.86656917,9.998e-05,2]
[329350716,1718270969948,299.56008254,9.999e-05,2]
[329350717,1718270972074,155.0,9.999e-05,2]
[329350718,1718270984923,155.0,9.999e-05,2]
[329350719,1718270985563,-273.06957803,0.0001053,2]
[329350720,1718270985659,-273.06957803,0.0001053,2]
[329350721,1718270987854,208.71266076,9.998e-05,2]
[329350722,1718270992088,660.30185486,9.999e-05,2]
[329350725,1718271010348,-283.99236115,0.00010528,2]
[329350726,1718271010456,-283.99236115,0.00010528,2]
[329350727,1718271011922,242.52046021,9.999e-05,2]
[329350728,1718271018787,155.0,9.999e-05,2]